{"text_format":"1","workbook":"xlsx","n_sheets":19,"sheets":["INICIO","LISTADO","DIVISAS","LA ESPERANZA","MS CASTELLANA","HOTEL CALI PLAZA  SPORTS","HOTEL IMBANACO","MS CENTENARIO","MS CHIPICHAPE","METROPOLIS PLAZA","HOTEL CALI PLAZA","HOTEL STANCIA","HOTEL DANN CALI","TORRE DE CALI PLAZA HOTEL","MS CIUDAD JARDÍN","FOUR POINTS BY SHERATON","HOTEL MOVICH ","HOTEL DANN CARLTON CALI","HOTEL SPIWAK"],"not_rendered":{"charts":0,"images":7,"macros":1,"external_links":0,"defined_names":2,"comments":0,"pivot_tables":0},"unopened":[],"bounds":{"document_bytes":16777216,"sheet_cells":100000,"rows_first":2000,"rows_last":500,"rows_between":2000,"halvings":0,"cell_chars":16384,"cell_head_chars":4096},"cells_cut":0,"cells_raw":0,"read":"whole","date_system":"1900"}

{"sheet":"INICIO","index":0,"n_rows":19,"n_cols":3,"rows_kept":19,"cut":false,"hidden":false,"merged":[[1,4,1,5],[17,2,17,5],[18,2,18,5]]}
[]
[]
[]
[]
[]
[]
[]
[]
[]
[]
[]
[]
[]
[]
[]
[]
[]
[null,null,"Hoteles oficiales"]
[null,null,"Official hotels "]

{"sheet":"LISTADO","index":1,"n_rows":15,"n_cols":6,"rows_kept":15,"cut":false,"hidden":false,"merged":[[1,4,1,5],[3,2,4,5],[5,2,6,5]]}
[]
[]
[]
[null,null,"LISTADO DE HOTELES"]
[]
[null,null,"HOTELS LIST"]
[]
[null,1,"LA ESPERANZA",null,9,"HOTEL STANCIA "]
[null,2,"MS CASTELLANA",null,10,"HOTEL DANN CALI "]
[null,3,"HOTEL CALI PLAZA SPORTS ",null,11,"TORRES DE CALI PLAZA HOTEL"]
[null,4,"HOTEL IMBANACO",null,12,"MS CIUDAD JARDÍN"]
[null,5,"MS CENTENARIO",null,13,"FOUR POINT BY SHERATON"]
[null,6,"MS CHIPICHAPE",null,14,"HOTEL MOVICH "]
[null,7,"METROPOLIS PLAZA",null,15,"HOTEL DANN CARLTON CALI "]
[null,8,"HOTEL CALI PLAZA",null,16,"HOTEL SPIWAK"]

{"sheet":"DIVISAS","index":2,"n_rows":149,"n_cols":8,"rows_kept":149,"cut":false,"hidden":true,"merged":[]}
[null,null,"Inicio"]
[null,null,"Idioma"]
[null,null,"es-CO"]
[null,null,"Contáctanos"]
[null,null,"contac"]
[null,null,"Mapa del Sitio"]
[null,null,"Síguenos en"]
[null,null,"contac"]
[null,null,"Buscar"]
[null,null,"  Buscar "]
[null,null,"Giros y Finanzas"]
[null,null,"Nosotros"]
[]
[null,null,"Nuestra Compañía"]
[null,null,"Estados Financieros"]
[null,null,"Código de Buen Gobierno"]
[null,null,"Código de Conducta"]
[null,null,"Administración de Riesgos"]
[null,null,"Encuesta Código País"]
[null,null,"Bonos de la Compañía"]
[null,null,"Línea de Transparencia"]
[null,null,"Responsabilidad Social"]
[null,null,"Productos y Servicios"]
[]
[null,null,"Giros / Western Union"]
[]
[null,null,"Pago de Giros Internacionales"]
[null,null,"Envío de Giros Internacionales"]
[null,null,"Giros VIGO"]
[null,null,"Giros Nacionales"]
[null,null,"Quick Pay / Pagos"]
[null,null,"Quick Cash"]
[null,null,"Ahorro e Inversión"]
[]
[null,null,"Cuenta Ahorra Fácil"]
[]
[null,null,"Tarjeta Débito"]
[null,null,"Cuenta Ahorra Fácil Plus"]
[null,null,"CDT´s"]
[]
[null,null,"Tasas"]
[null,null,"Financiación"]
[]
[null,null,"Credioro"]
[null,null,"Cupo de Crédito Rotativo"]
[null,null,"Crédito para Vehículo"]
[null,null,"Créditos para Colombianos en el Exterior"]
[null,null,"Crédito de Libranza"]
[null,null,"Tarjeta de Crédito LA 14"]
[null,null,"Seguros"]
[]
[null,null,"Mi Pago Seguro"]
[null,null,"Mi Familia Segura"]
[null,null,"Seguro de Repatriación"]
[null,null,"Compra y Venta de Divisas"]
[null,null,"Recaudos"]
[null,null,"Western Union"]
[]
[null,null,"Giros / Western Union"]
[]
[null,null,"Pago de Giros Internacionales"]
[null,null,"Envío de Giros Internacionales"]
[null,null,"Giros Nacionales"]
[null,null,"Quick Pay / Pagos"]
[null,null,"Quick Cash"]
[null,null,"VIGO"]
[null,null,"Nuestras Oficinas"]
[null,null,"Colombianos en el Exterior"]
[]
[null,null,"Créditos para Colombianos en el Exterior"]
[null,null,"Giros / Western Union"]
[]
[null,null,"Pago de Giros Internacionales"]
[null,null,"Envío de Giros Internacionales"]
[null,null,"Quick Pay/ Aportes a Colpensiones / Pagos"]
[null,null,"Preguntas Frecuentes"]
[null,null,"Envíos Online"]
[null,null,"Zona de Pagos"]
[null,null,"Estás en:  Productos y ServiciosCompra y Venta de Divisas"]
[]
[]
[null,null,"Puntos de Atención","¿Interesado en comprar o vender Dólares y Euros en efectivo?. En Giros y Finanzas C.F. S.A. te ofrecemos realizar tus negociaciones de compra y venta de divisas, de manera ágil, cómoda y segura; este servicio se encuentra disponible para divisas que provengan de actividades autorizadas por las disposiciones legales vigentes y que se puedan canalizar a través de la Compañía. "]
[]
[null,null,"Búsqueda de oficina por ciudad","Beneficios"]
[]
[null,null,"Departamento:","Tranquilidad de realizar tus transacciones en moneda extranjera con una entidad vigilada por la Superintendencia Financiera de Colombia."]
[null,null,null,"Soporte de tus transacciones frente a las autoridades aeroportuarias (declaración de cambio)."]
[null,null,"Ciudad:","Seguridad en cuanto a la legalidad y origen de las divisas, respaldada por el manejo de personal especializado."]
[null,null,null,"Servicio oportuno, disponibilidad de divisas a nivel nacional (más de 160 puntos de atención en todo el país)."]
[null,null,null,"Para clientes institucionales, ofrecemos el servicio en sus instalaciones dependiendo del monto requerido y la ubicación de la empresa."]
[null,null,null,"Tasas de cambio competitivas."]
[null,null,"Si quiere conocer la oficina más cercana a tu ubicación, ingresa tu dirección:"]
[null,null,"(Ej: calle 104 # 14 - 86 Bogotá ) debes incluir la ciudad"]
[]
[null,null,"Giros / Western Union","Descripción","Dolar ",null,"Euro"]
[null,null,null,"TRM","Muestra un Alza",2496.9899999999998,"Sufre una Baja",2800.75]
[null,null,"Pago de Giros Internacionales","Compra","Muestra un Alza",2250,"Se mantiene",2450]
[null,null,"Envío de Giros Internacionales","Venta","Muestra un Alza",2350,"Se mantiene",2550]
[null,null,"Giros VIGO","                                                   *Las tasas de compra y venta de divisas, pueden variar según la ciudad."]
[null,null,"Giros Nacionales"]
[null,null,"Quick Pay / Pagos","Si deseas conocer más acerca de este producto"]
[null,null,"Quick Cash"]
[]
[null,null,"Financiación"]
[]
[null,null,"Credioro"]
[null,null,"Cupo de Crédito Rotativo"]
[null,null,"Crédito para Vehículo"]
[null,null,"Créditos para Colombianos en el Exterior"]
[null,null,"Crédito de Libranza"]
[]
[null,null,"Ahorro e Inversión"]
[]
[null,null,"Cuenta Ahorra Fácil"]
[null,null,"  -Tarjeta Débito"]
[null,null,"Cuenta Ahorra Fácil Plus"]
[null,null,"CDT´s"]
[]
[null,null,"Tarjeta de Crédito LA 14"]
[]
[null,null,"Tarjeta de Crédito LA 14"]
[]
[null,null,"Seguros"]
[]
[null,null,"Mi Pago Seguro"]
[null,null,"Mi Familia Segura"]
[null,null,"Seguro de Repatriación"]
[]
[null,null,"Compra y Venta de Divisas"]
[]
[null,null,"Compra y Venta de Divisas"]
[]
[null,null,"Recaudos"]
[]
[null,null,"Recaudos"]
[]
[null,null,"Acerca de los certificados SSL"]
[null,null,"Encuentra aquí información de interés"]
[]
[null,null,"Derechos del Consumidor Financiero"]
[null,null,"Obligaciones de las Entidades Vigiladas"]
[null,null,"Consecuencias del Incumplimiento"]
[]
[null,null,"Educación Financiera"]
[null,null,"Tabla de Tarifas"]
[null,null,"Defensor del Consumidor Financiero"]
[null,null,"Superintendencia Financiera de Colombia"]
[]
[null,null,"Copyright (c) 2012 Giros y Finanzas Compañia de Financiamiento S.A"]

{"sheet":"LA ESPERANZA","index":3,"n_rows":19,"n_cols":11,"rows_kept":19,"cut":false,"hidden":false,"merged":[[14,2,16,10],[13,1,16,1],[18,2,18,10],[13,2,13,10],[7,1,8,1],[7,2,8,2],[7,3,8,3],[7,4,8,4],[7,5,7,7],[12,2,12,10],[7,8,7,10],[1,4,1,10],[3,4,3,10],[5,2,5,10],[6,2,6,4],[6,5,6,7],[6,8,6,10],[2,5,2,10]]}
[]
[null,null,null,null,"HOTEL LA ESPERANZA"]
[null,null,null,null,null,"http://www.hotelesperanzacali.com/"]
[null,null,null,null,"VOLVER AL LISTADO"]
[]
[null,null,"ACOMODACIÓN"]
[null,null,"TARIFA EN PESOS",null,null,"RATE IN USD",null,null,"RATE IN EUROS"]
[null,"RATE PER PERSON","DOBLE","TRIPLE","CUADRUPLE",{"$f":"DIVISAS!F96","v":2496.9899999999998},null,null,{"$f":"DIVISAS!H96","v":2800.75}]
[null,null,null,null,null,"SINGLE","DOUBLE","3/4","SINGLE","DOUBLE","3/4"]
[null,"RATE WITH BREAKFAST",120000,180000,240000,{"$f":"+_xlfn.CEILING.PRECISE((C10/F8),1)","v":49},{"$f":"+_xlfn.CEILING.PRECISE((D10/F8),1)","v":73},{"$f":"+_xlfn.CEILING.PRECISE((E10/F8),1)","v":97},{"$f":"+_xlfn.CEILING.PRECISE((C10/I8),1)","v":43},{"$f":"+_xlfn.CEILING.PRECISE((D10/I8),1)","v":65},{"$f":"+_xlfn.CEILING.PRECISE((E10/I8),1)","v":86}]
[null,"RATE WITH BREAKFAST AND DINNER",140000,210000,280000,{"$f":"+_xlfn.CEILING.PRECISE((C11/F8),1)","v":57},{"$f":"+_xlfn.CEILING.PRECISE((D11/F8),1)","v":85},{"$f":"+_xlfn.CEILING.PRECISE((E11/F8),1)","v":113},{"$f":"+_xlfn.CEILING.PRECISE((C11/I8),1)","v":50},{"$f":"+_xlfn.CEILING.PRECISE((D11/I8),1)","v":75},{"$f":"+_xlfn.CEILING.PRECISE((E11/I8),1)","v":100}]
[null,"RATE WITH BREAKFAST, LUNCH AND DINNER",160000,240000,320000,{"$f":"+_xlfn.CEILING.PRECISE((C12/F8),1)","v":65},{"$f":"+_xlfn.CEILING.PRECISE((D12/F8),1)","v":97},{"$f":"+_xlfn.CEILING.PRECISE((E12/F8),1)","v":129},{"$f":"+_xlfn.CEILING.PRECISE((C12/I8),1)","v":58},{"$f":"+_xlfn.CEILING.PRECISE((D12/I8),1)","v":86},{"$f":"+_xlfn.CEILING.PRECISE((E12/I8),1)","v":115}]
[]
[null,"ESPECIFICACIONES","SERVICIOS INCLUIDOS E LA TARIFA:\n• Alojamiento • Habitaciones con sistema inteligente e insonorizadas • Baño Turco • Aire Acondicionado • Ducha Agua caliente / fría • Ascensor • Mirador Solarium • Internet inalámbrico ilimitado • IVA – Seguro Hotelero • Parqueadero Privado • Cajilla de Seguridad    "]
[null,null,"POLITICAS DE CALIDAD\n1. SOLICITUD DE RESERVAS: El cliente podrá solicitar la reserva ó modificaciones a los E-mail ó teléfonos. En todos los casos debe confirmar la reserva por escrito y queda pendiente que el funcionario del hotel confirme la disponibilidad.\n2. PROCEDIMIENTO PARA CANCELACIÓN DE RESERVA: Para cancelar reservas se requiere de una comunicación escrita con antelación no inferior a 24 horas antes de la llegada del huésped.\n3. POLÍTICAS PARA EL CHECK IN Y CHECK OUT: El Check In 3:00 PM o Ingreso al Hotel y Check Out o salida del Hotel, se registra a las 2:00 PM.\n4. LATE CHECK OUT (Después de la hora de Check Out): Para su autorización, es necesario informar previamente en recepción; de lo contrario, se cobrará el día completo.\nCONTINUA EN LA SIGUIENTE PÁGINA"]
[]
[]
[]
[null,"ESPECIFICACIONES","POLITICAS DE CALIDAD\n5. POLÍTICAS DE NO SHOW: El No Show implica, la no presentación al hotel, cuando se ha solicitado una reserva con anticipación.\nEn este caso, deberá cancelar el 100% del valor de la primera noche. El hotel conserva la reserva hasta las 6:00 PM., pasado este tiempo, si requiere reactivarla, deberá solicitarla nuevamente y estará sujeta a la disponibilidad del hotel.\n6. POLÍTICAS DE NO CHECK OUT: El No Check Out se entiende cuando un huésped no libera la habitación el día acordado. Para estos casos el huésped debe avisar con un día de antelación. De no hacerlo, su tarifa será recargada en un 10%. En caso contrario, si el huésped avisa con la debida anticipación, no se efectuará ningún recargo.\n7. POLÍTICAS DE BLOQUEO\nPara hacer el bloqueo de habitaciones, se requiere de una Carta Garantía confirmando las reservas, nombre de huéspedes, número de habitaciones, tipo de habitación, acomodación, fechas y horas de llegada y salida. También es importante que informe que gastos le cubre.\n8. FORMAS DE PAGO:: Efectivo en pesos Colombianos y en dólares, Tarjeta de Crédito, Cheque empresarial\n9. POLITICAS DE CREDITO: El cupo de crédito se asigna de acuerdo con previo estudio y aprobación; para la primera compra, no se otorga crédito, por tanto su pago debe ser de contado.\n10. POLITICA COBRO POR MORA: Si el crédito es aprobado nos comprometemos a pagar todos los cargos que se hagan contra nuestra cuenta en un plazo no mayor a 30 días, contamos a partir de la fecha del consumo(s); vencido este plazo, pagaremos intereses de mora a la tasa.\n"]

{"sheet":"MS CASTELLANA","index":4,"n_rows":15,"n_cols":11,"rows_kept":15,"cut":false,"hidden":false,"merged":[[12,2,12,10],[12,1,14,1],[7,8,7,10],[11,2,11,10],[13,2,13,5],[13,6,13,10],[14,2,14,10],[7,1,8,1],[7,2,8,2],[7,3,8,3],[7,4,8,4],[7,5,7,7],[1,4,1,10],[5,2,5,10],[6,2,6,4],[6,5,6,7],[6,8,6,10],[3,4,3,10],[2,4,2,10]]}
[]
[null,null,null,null,"HOTEL MS. CASTELLANA "]
[null,null,null,null,"http://www.hotelesms.com/es/hoteles/cali/hotel-ms-castellana-cali-sur"]
[null,null,null,null,"VOLVER AL LISTADO"]
[]
[null,null,"ACOMODACIÓN"]
[null,null,"TARIFA EN PESOS",null,null,"RATE IN USD",null,null,"RATE IN EUROS"]
[null,"RATE PER PERSON","SENCILLA","DOBLE","TRIPLE Ó CUADRUPLE",{"$f":"DIVISAS!F96","v":2496.9899999999998},null,null,{"$f":"DIVISAS!H96","v":2800.75}]
[null,null,null,null,null,"SINGLE","DOUBLE","3/4","SINGLE","DOUBLE","3/4"]
[null,"RATE WITH BREAKFAST",100000,130000,179920,{"$f":"+_xlfn.CEILING.PRECISE((C10/F8),1)","v":41},{"$f":"+_xlfn.CEILING.PRECISE((D10/F8),1)","v":53},{"$f":"+_xlfn.CEILING.PRECISE((E10/F8),1)","v":73},{"$f":"+_xlfn.CEILING.PRECISE((C10/I8),1)","v":36},{"$f":"+_xlfn.CEILING.PRECISE((D10/I8),1)","v":47},{"$f":"+_xlfn.CEILING.PRECISE((E10/I8),1)","v":65}]
[null,"RATE WITH BREAKFAST, LUNCH AND DINNER",110000,160000,225000,{"$f":"+_xlfn.CEILING.PRECISE((C11/F8),1)","v":45},{"$f":"+_xlfn.CEILING.PRECISE((E10/F8),1)","v":73},{"$f":"+_xlfn.CEILING.PRECISE((E11/F8),1)","v":91},{"$f":"+_xlfn.CEILING.PRECISE((C11/I8),1)","v":40},{"$f":"+_xlfn.CEILING.PRECISE((D11/I8),1)","v":58},{"$f":"+_xlfn.CEILING.PRECISE((E11/I8),1)","v":81}]
[]
[null,"ESPECIFICACIONES","HABITACIONES DISPONIBLES PARA EL EVENTO: 10 habitaciones dobles, 10 habitaciones triples y 1 habitación sencilla."]
[null,null,"Servicios Incluidos en Tarifa:\n•  Alojamiento en cómodas habitaciones.\n•  Iva del 16% de alojamiento.\n• Seguro hotelero por persona de $7.000.\n• Dependiendo de la tarifa escogida conexión a Internet Wifi,  \n  banda ancha y parqueadero.",null,null,null,"Servicios NO incluidos en la tarifa:\n• Mini- bar\n• Llamadas telefónicas nacionales e internacionales.\n• Lavandería\n• Servicios no especificados en la tarifa."]
[null,null,"FORMA DE PAGO:  Para la confirmación de la reserva,  se requiere  el 50%  con veinte  días  de  anticipación  a la reserva  y el otro  50%  tres días antes de la llegada  del grupo.\nLos bancos para la realización de consignaciones son:\nDAVIVIENDA: Cuernta corriente N°. 015969999745 - HOTELES MS SAS.\nBANCOLOMBIA: Cuernta corriente N°.  82954707400 - HOTELES MS SAS."]

{"sheet":"HOTEL CALI PLAZA  SPORTS","index":5,"n_rows":15,"n_cols":11,"rows_kept":15,"cut":false,"hidden":false,"merged":[[12,2,12,10],[13,2,13,10],[13,1,15,1],[14,2,15,10],[7,1,8,1],[7,2,8,2],[7,3,8,3],[7,4,8,4],[7,5,7,7],[7,8,7,10],[1,4,1,10],[3,4,3,10],[5,2,5,10],[6,2,6,4],[6,5,6,7],[6,8,6,10],[2,6,2,10]]}
[]
[null,null,null,null,"HOTEL CALI PLAZA SPORTS"]
[null,null,null,null,null,null,"http://caliplaza.com/hotel-cali-plaza-sports/"]
[null,null,null,null,"VOLVER AL LISTADO"]
[]
[null,null,"ACOMODACIÓN"]
[null,null,"TARIFA EN PESOS",null,null,"TARIFA EN DOLARES",null,null,"TARIFA EN EUROS"]
[null,"TARIFA POR PERSONA","SENCILLA","DOBLE","TRIPLE Ó CUADRUPLE",{"$f":"DIVISAS!F96","v":2496.9899999999998},null,null,{"$f":"DIVISAS!H96","v":2800.75}]
[null,null,null,null,null,"SENCILLA","DOBLE","TRIPLE Ó CUADRUPLE","SENCILLA","DOBLE","TRIPLE Ó CUADRUPLE"]
[null,"RATE WITH BREAKFAST",110000,130000,175000,{"$f":"+_xlfn.CEILING.PRECISE((C10/F8),1)","v":45},{"$f":"+_xlfn.CEILING.PRECISE((D10/F8),1)","v":53},{"$f":"+_xlfn.CEILING.PRECISE((E10/F8),1)","v":71},{"$f":"+_xlfn.CEILING.PRECISE((C10/I8),1)","v":40},{"$f":"+_xlfn.CEILING.PRECISE((D10/I8),1)","v":47},{"$f":"+_xlfn.CEILING.PRECISE((E10/I8),1)","v":63}]
[null,"RATE WITH BREAKFAST AND DINNER",120000,150000,195000,{"$f":"+_xlfn.CEILING.PRECISE((C11/F8),1)","v":49},{"$f":"+_xlfn.CEILING.PRECISE((D11/F8),1)","v":61},{"$f":"+_xlfn.CEILING.PRECISE((E11/F8),1)","v":79},{"$f":"+_xlfn.CEILING.PRECISE((C11/I8),1)","v":43},{"$f":"+_xlfn.CEILING.PRECISE((D11/I8),1)","v":54},{"$f":"+_xlfn.CEILING.PRECISE((E11/I8),1)","v":70}]
[null,"RATE WITH BREAKFAST, LUNCH AND DINNER",130000,170000,225000,{"$f":"+_xlfn.CEILING.PRECISE((C12/F8),1)","v":53},{"$f":"+_xlfn.CEILING.PRECISE((D12/F8),1)","v":69},{"$f":"+_xlfn.CEILING.PRECISE((E12/F8),1)","v":91},{"$f":"+_xlfn.CEILING.PRECISE((C12/I8),1)","v":47},{"$f":"+_xlfn.CEILING.PRECISE((D12/I8),1)","v":61},{"$f":"+_xlfn.CEILING.PRECISE((E12/I8),1)","v":81}]
[]
[null,"ESPECIFICACIONES","SERVICIOS INCLUIDOS E LA TARIFA:\nIva del 16%; seguro hotelero, internet cableado y WI-FI, llamadas telefónicas locales ilimitadas, zona húmedas (turco y jacuzzi), emergencias médicas, parqueadero.\nLAS TARIFAS NO INCLUYEN OTROS SERVICIOS NO ESPECIFICADOS"]
[null,null,"El Hotel Cali Plaza ofrece:  • 23 habitaciones: 10 tipo estándar y 13 superior, amplias y elegantes que invitan al descanso. • Lencería de lujo de 250 hilos. • Amenities para el cuidado personal. • Conexión Wi Fi de alta velocidad gratuita. • Escritorio con lámpara de lectura. • Aire acondicionado tipo Mini Split. • Televisión por cable con LCD de 42.” • Cajilla de seguridad electrónica. • Cerradura de acceso inteligente. • Minibar • Lavandería. • Salón para reuniones sociales y empresariales hasta 80 personas, equipado con ayudas audiovisuales • Llamadas telefónicas locales ilimitadas • Circuito cerrado de televisión. • Parqueadero gratuito • Terraza cafetería. • Zona húmeda: jacuzzi – turco.  -  Igualmente se informa que no se generara pago de comisión por las reservas realizadas en los portales. - El valor del dólar estará sujeto a la TRM.\nLas habitaciones ofrecidas están sujetas a la disponibilidad que presente el hotel en el momento de solicitar la reserva.\nLas reservaciones podrán ser solicitadas por vía telefónica o email y deberán ser reconfirmadas por escrito informándonos el nombre y apellidos de cliente, fecha de llegada y salida, nombre completo persona con número de contacto de quien hace la reserva. Las reservaciones pueden ser canceladas en efectivo (pesos Colombianos); tarjeta débito, crédito, visa, master card, american express.\nCon el fin de garantizar las habitaciones, deberán realizar un anticipo por el valor de la primera noche del total de las habitaciones reservadas, con dos (15) días de anterioridad y para cancelar o modificar el número de habitaciones deberán hacerse con (8) días previos a la llegada. Toda reserva se conservara hasta las 12 de la noche del día de la llegada. Si el cliente no se presenta en la fecha prevista se considerara como No Show y deberá pagar al hotel el valor total a la primera noche. Disponemos de un salón para eventos sociales y reuniones empresariales con capacidad hasta 80 personas, equipado con ayudas audiovisuales y con la opción adicional de servicio de alimentos y bebidas: refrigerios almuerzos y cenas.\n\n"]

{"sheet":"HOTEL IMBANACO","index":6,"n_rows":15,"n_cols":5,"rows_kept":15,"cut":false,"hidden":false,"merged":[[1,3,1,4],[3,3,3,4],[5,2,5,4],[14,2,14,4],[2,0,2,4],[7,1,8,1],[7,2,8,2],[13,2,13,4]]}
[]
[null,null,null,"HOTEL IMBANACO"]
["http://www.hotelimbanacocali.com/"]
[null,null,null,"VOLVER AL LISTADO"]
[]
[null,null,"ACOMODACIÓN"]
[null,null,"TARIFA EN PESOS","RATE IN USD","RATE IN EUROS"]
[null,"TARIFA POR PERSONA","MÚLTIPLE",{"$f":"DIVISAS!F96","v":2496.9899999999998},{"$f":"DIVISAS!H96","v":2800.75}]
[null,null,null,"MÚLTIPLE","MÚLTIPLE"]
[null,"ALOJAMIENTO SIN ALIMENTACIÓN Y SIN IMPUESTOS",50000,{"$f":"+_xlfn.CEILING.PRECISE((C10/D8),1)","v":21},{"$f":"+_xlfn.CEILING.PRECISE((C10/E8),1)","v":18}]
[null,"ALOJAMIENTO INCLUYE DESAYUNO,\nNO INCLUYE SH / IVA",57000,{"$f":"+_xlfn.CEILING.PRECISE((C11/D8),1)","v":23},{"$f":"+_xlfn.CEILING.PRECISE((C11/E8),1)","v":21}]
[null,"ALOJAMIENTO INCLUYE DESAYUNO Y CENA,\nNO INCLUYE SH / IVA",66000,{"$f":"+_xlfn.CEILING.PRECISE((C12/D8),1)","v":27},{"$f":"+_xlfn.CEILING.PRECISE((C12/E8),1)","v":24}]
[null,"ALOJAMIENTO INCLUYE DESAYUNO,  ALMUERZO Y  CENA, NO INCLUYE SH / IVA",75000,{"$f":"+_xlfn.CEILING.PRECISE((C13/D8),1)","v":31},{"$f":"+_xlfn.CEILING.PRECISE((C13/E8),1)","v":27}]
[]
[null,"ESPECIFICACIONES","• Modernas Instalaciones recién remodeladas • 40  Habitaciones • Servicio de Televisión Satelital • Internet Wi Fi Gratuito para todos nuestros clientes • Baño Privado • Teléfono para recepción y salida de llamadas • Lavandería • Servicios de Restaurante • Recepción 24 Horas • Parqueadero • Aire Acondicionado o Ventilador • Salón de eventos & Convenciones con capacidad para 50 personas • Organización de eventos Empresariales • Ayudas Audiovisuales y Sonido • Traslados Aeropuerto Hotel Aeropuerto • Alquiler de transporte de servicio especial.\nTenemos 41 habitaciones 28 con aire acondicionado. Todas nuestras habitaciones cuentan con baño privado, agua caliente, Wi Fi gratuito, televisor de 20 pulgadas, televisión por cable. Tenemos habitaciones con acomodación sencilla, Doble, triple, cuádruple y quíntuple. Contamos con Salón de eventos y Convenciones con ayudas audiovisuales. La capacidad de nuestro salón es de 50 personas aproximadamente. En nuestro Salón podemos organizar reuniones de trabajo, lanzamiento de productos, capacitaciones y otros eventos de tipo Corporativo. ADICIONAL:  Alquiler de Video Beam por día: $60.000 - Refrigerios c/u $  7.500."]

{"sheet":"MS CENTENARIO","index":7,"n_rows":15,"n_cols":11,"rows_kept":15,"cut":false,"hidden":false,"merged":[[11,2,11,10],[12,1,14,1],[12,2,12,10],[13,2,13,5],[13,6,13,10],[14,2,14,10],[7,1,8,1],[7,2,8,2],[7,3,8,3],[7,4,8,4],[7,5,7,7],[7,8,7,10],[1,4,1,10],[3,4,3,10],[5,2,5,10],[6,2,6,4],[6,5,6,7],[6,8,6,10],[2,3,2,10]]}
[]
[null,null,null,null,"HOTEL CENTENARIO"]
[null,null,null,"http://www.hotelesms.com/es/hoteles/cali/hotel-ms-centenario-cali-norte"]
[null,null,null,null,"VOLVER AL LISTADO"]
[]
[null,null,"ACOMODACIÓN"]
[null,null,"TARIFA EN PESOS",null,null,"RATE IN USD",null,null,"RATE IN EUROS"]
[null,"RATE PER PERSON","SENCILLA","DOBLE","TRIPLE Ó CUADRUPLE",{"$f":"DIVISAS!F96","v":2496.9899999999998},null,null,{"$f":"DIVISAS!H96","v":2800.75}]
[null,null,null,null,null,"SINGLE","DOUBLE","3/4","SINGLE","DOUBLE","3/4"]
[null,"RATE WITH BREAKFAST",120000,135000,177000,{"$f":"+_xlfn.CEILING.PRECISE((C10/F8),1)","v":49},{"$f":"+_xlfn.CEILING.PRECISE((D10/F8),1)","v":55},{"$f":"+_xlfn.CEILING.PRECISE((E10/F8),1)","v":71},{"$f":"+_xlfn.CEILING.PRECISE((C10/I8),1)","v":43},{"$f":"+_xlfn.CEILING.PRECISE((D10/I8),1)","v":49},{"$f":"+_xlfn.CEILING.PRECISE((E10/I8),1)","v":64}]
[null,"RATE WITH BREAKFAST, LUNCH AND DINNER",150000,192000,234001,{"$f":"+_xlfn.CEILING.PRECISE((C11/F8),1)","v":61},{"$f":"+_xlfn.CEILING.PRECISE((E10/F8),1)","v":71},{"$f":"+_xlfn.CEILING.PRECISE((E11/F8),1)","v":94},{"$f":"+_xlfn.CEILING.PRECISE((C11/I8),1)","v":54},{"$f":"+_xlfn.CEILING.PRECISE((D11/I8),1)","v":69},{"$f":"+_xlfn.CEILING.PRECISE((E11/I8),1)","v":84}]
[]
[null,"ESPECIFICACIONES","HABITACIONES DISPONIBLES PARA EL EVENTO: 10 habitaciones triples, 3 habitaciones dobles y 1 habitación sencilla."]
[null,null,"Servicios Incluidos en Tarifa:\n•  Alojamiento en cómodas habitaciones.\n•  Iva del 16% de alojamiento.\n• Seguro hotelero por persona de $7.900.\n• Desayuno americano y alimentación dependiendo tarifa.\n• Conexión a Internet Wifi, banda ancha y parqueadero.",null,null,null,"Servicios NO incluidos en la tarifa:\n• Mini- bar\n• Llamadas telefónicas nacionales e internacionales.\n• Lavandería\n• Servicios no especificados en la tarifa."]
[null,null,"FORMA DE PAGO:  Para la confirmación de la reserva,  se requiere  el 50%  con veinte  días  de  anticipación  a la reserva  y el otro  50%  tres días antes de la llegada  del grupo.\nPuede realizar su pago a través de nuestra Cuenta de Ahorros 829-301-045-03 de Bancolombia a Nombre de Francisco Javier Montilla Erazo. Somos Régimen Común, exentos de retención de acuerdo al artículo 207-4 numeral 3 y 4, articulo 369 numeral 2 del E.T. \nFavor  consultar disponibilidad antes de realizar la consignación."]

{"sheet":"MS CHIPICHAPE","index":8,"n_rows":15,"n_cols":11,"rows_kept":15,"cut":false,"hidden":false,"merged":[[11,2,11,10],[12,1,14,1],[12,2,12,10],[13,2,13,5],[13,6,13,10],[14,2,14,10],[7,1,8,1],[7,2,8,2],[7,3,8,3],[7,4,8,4],[7,5,7,7],[7,8,7,10],[1,4,1,10],[3,4,3,10],[5,2,5,10],[6,2,6,4],[6,5,6,7],[6,8,6,10],[2,4,2,10]]}
[]
[null,null,null,null,"HOTEL CHIPICHAPE"]
[null,null,null,null,"http://www.hotelesms.com/es/hoteles/cali/hotel-ms-chipichape-cali-norte"]
[null,null,null,null,"VOLVER AL LISTADO"]
[]
[null,null,"ACOMODACIÓN"]
[null,null,"TARIFA EN PESOS",null,null,"RATE IN USD",null,null,"RATE IN EUROS"]
[null,"RATE PER PERSON","SENCILLA","DOBLE","TRIPLE Ó CUADRUPLE",{"$f":"DIVISAS!F96","v":2496.9899999999998},null,null,{"$f":"DIVISAS!H96","v":2800.75}]
[null,null,null,null,null,"SINGLE","DOUBLE","3/4","SINGLE","DOUBLE","3/4"]
[null,"RATE WITH BREAKFAST",120000,135000,177000,{"$f":"+_xlfn.CEILING.PRECISE((C10/F8),1)","v":49},{"$f":"+_xlfn.CEILING.PRECISE((D10/F8),1)","v":55},{"$f":"+_xlfn.CEILING.PRECISE((E10/F8),1)","v":71},{"$f":"+_xlfn.CEILING.PRECISE((C10/I8),1)","v":43},{"$f":"+_xlfn.CEILING.PRECISE((D10/I8),1)","v":49},{"$f":"+_xlfn.CEILING.PRECISE((E10/I8),1)","v":64}]
[null,"RATE WITH BREAKFAST, LUNCH AND DINNER",150000,192000,234001,{"$f":"+_xlfn.CEILING.PRECISE((C11/F8),1)","v":61},{"$f":"+_xlfn.CEILING.PRECISE((E10/F8),1)","v":71},{"$f":"+_xlfn.CEILING.PRECISE((E11/F8),1)","v":94},{"$f":"+_xlfn.CEILING.PRECISE((C11/I8),1)","v":54},{"$f":"+_xlfn.CEILING.PRECISE((D11/I8),1)","v":69},{"$f":"+_xlfn.CEILING.PRECISE((E11/I8),1)","v":84}]
[]
[null,"ESPECIFICACIONES","HABITACIONES DISPONIBLES PARA EL EVENTO: 10 habitaciones dobles y 8 habitaciones triples."]
[null,null,"Servicios Incluidos en Tarifa:\n•  Alojamiento en cómodas habitaciones.\n•  Iva del 16% de alojamiento.\n• Seguro hotelero por persona de $7.900.\n• Desayuno americano y alimentación dependiendo tarifa.\n• Conexión a Internet Wifi, banda ancha y parqueadero.",null,null,null,"Servicios NO incluidos en la tarifa:\n• Mini- bar\n• Llamadas telefónicas nacionales e internacionales.\n• Lavandería\n• Servicios no especificados en la tarifa."]
[null,null,"FORMA DE PAGO:  Para la confirmación de la reserva,  se requiere  el 50%  con veinte  días  de  anticipación  a la reserva  y el otro  50%  tres días antes de la llegada  del grupo.\nDAVIVIENDA: Cuernta corriente N°. 015969999745 - HOTELES MS SAS.\nBANCOLOMBIA: Cuernta corriente N°.  82954707400 - HOTELES MS SAS.\nFavor consultar disponibilidad antes de realizar la consignación."]

{"sheet":"METROPOLIS PLAZA","index":9,"n_rows":18,"n_cols":11,"rows_kept":18,"cut":false,"hidden":false,"merged":[[17,2,17,10],[13,1,17,1],[1,4,1,10],[3,4,3,10],[5,2,5,10],[7,5,7,7],[12,2,12,10],[13,2,13,5],[13,6,13,10],[7,1,8,1],[6,2,6,4],[6,5,6,7],[6,8,6,10],[7,8,7,10],[7,4,8,4],[7,3,8,3],[7,2,8,2],[14,2,14,10],[15,2,15,10],[16,2,16,10],[2,4,2,10]]}
[]
[null,null,null,null,"HOTEL METRÓPOLIS PLAZA - CALI"]
[null,null,null,null,"http://www.booking.com/hotel/co/metropolis-plaza-cali.es.html"]
[null,null,null,null,"VOLVER AL LISTADO"]
[]
[null,null,"ACOMODACIÓN"]
[null,null,"TARIFA EN PESOS",null,null,"RATE IN USD",null,null,"RATE IN EUROS"]
[null,"RATE PER PERSON","SENCILLA","DOBLE","TRIPLE Ó CUADRUPLE",{"$f":"DIVISAS!F96","v":2496.9899999999998},null,null,{"$f":"DIVISAS!H96","v":2800.75}]
[null,null,null,null,null,"SINGLE","DOUBLE","3/4","SINGLE","DOUBLE","3/4"]
[null,"RATE WITH BREAKFAST",90000,55000,50000,{"$f":"+_xlfn.CEILING.PRECISE((C10/F8),1)","v":37},{"$f":"+_xlfn.CEILING.PRECISE((D10/F8),1)","v":23},{"$f":"+_xlfn.CEILING.PRECISE((E10/F8),1)","v":21},{"$f":"+_xlfn.CEILING.PRECISE((C10/I8),1)","v":33},{"$f":"+_xlfn.CEILING.PRECISE((D10/I8),1)","v":20},{"$f":"+_xlfn.CEILING.PRECISE((E10/I8),1)","v":18}]
[null,"RATE WITH BREAKFAST AND DINNER",100000,65000,60000,{"$f":"+_xlfn.CEILING.PRECISE((C11/F8),1)","v":41},{"$f":"+_xlfn.CEILING.PRECISE((E10/F8),1)","v":21},{"$f":"+_xlfn.CEILING.PRECISE((E11/F8),1)","v":25},{"$f":"+_xlfn.CEILING.PRECISE((C11/I8),1)","v":36},{"$f":"+_xlfn.CEILING.PRECISE((D11/I8),1)","v":24},{"$f":"+_xlfn.CEILING.PRECISE((E11/I8),1)","v":22}]
[null,"RATE WITH BREAKFAST, LUNCH AND DINNER",110000,75000,70000,{"$f":"+_xlfn.CEILING.PRECISE((C12/F8),1)","v":45},{"$f":"+_xlfn.CEILING.PRECISE((D12/F8),1)","v":31},{"$f":"+_xlfn.CEILING.PRECISE((E12/F8),1)","v":29},{"$f":"+_xlfn.CEILING.PRECISE((C12/I8),1)","v":40},{"$f":"+_xlfn.CEILING.PRECISE((D12/I8),1)","v":27},{"$f":"+_xlfn.CEILING.PRECISE((E12/I8),1)","v":25}]
[]
[null,"ESPECIFICACIONES","SERVICIOS INCLUIDOS E LA TARIFA:\n• Desayuno Buffet en el restaurante del Hotel\n• Iva del 16%\n• Seguro hotelero por persona de $6.000.\n• Llamadas locales * Piscina.\n• Internet Wi-Fi  * Parqueadero.",null,null,null,"SERVICIOS NO INCLUIDOS E LA TARIFA:\n• Llamadas a larga distancia e internacionales\n• Mini- bar\n• Lavandería\n• Servicios no especificados en la cotización"]
[null,null,"FORMA DE PAGO:  Tarjetas de Crédito: Visa, Master Card, American Express, Diners."]
[null,null,"POLÍTICA DE CANCELACIÓN DE RESERVAS: Toda cancelación de reservas debe ser solicitada por escrito en un tiempo mínimo de 24 horas antes de la llegada del huésped. De lo contrario se cobrará el valor de la primera noche de alojamiento. "]
[null,null,"POLÍTICA DE  NO SHOW: Todo huésped con reserva confirmada que no llegue al hotel  el día previsto  se considera  No Show  y la empresa  deberá cancelar  al hotel el 100% del valor de la primera noche.  El sistema automáticamente  cancela  la reserva   y  en caso de que ésta  necesite ser reactivada se deberá solicitar una nueva reserva, que estará  sujeta a la disponibilidad del Hotel."]
[null,null,"POLÍTICA  DE  NO CHECK OUT : El no check out se determina cuando un huésped no libera la habitación en la fecha establecida en su reserva. Como política general, el huésped debe entregar la habitación al vencimiento del contrato de hospedaje, (esta política aplica cuando el Hotel se encuentre en alta ocupación)."]

{"sheet":"HOTEL CALI PLAZA","index":10,"n_rows":15,"n_cols":11,"rows_kept":15,"cut":false,"hidden":false,"merged":[[12,2,12,10],[13,1,16,1],[13,2,13,10],[14,2,16,10],[7,1,8,1],[7,2,8,2],[7,3,8,3],[7,4,8,4],[7,5,7,7],[7,8,7,10],[1,4,1,10],[5,2,5,10],[6,2,6,4],[6,5,6,7],[6,8,6,10],[2,6,2,10],[3,1,3,10]]}
[]
[null,null,null,null,"HOTEL CALI PLAZA"]
[null,null,null,null,null,null,"http://caliplaza.com/"]
[null,"VOLVER AL LISTADO"]
[]
[null,null,"ACOMODACIÓN"]
[null,null,"TARIFA EN PESOS",null,null,"TARIFA EN DOLARES",null,null,"TARIFA EN EUROS"]
[null,"TARIFA POR PERSONA","SENCILLA","DOBLE","TRIPLE Ó CUADRUPLE",{"$f":"DIVISAS!F96","v":2496.9899999999998},null,null,{"$f":"DIVISAS!H96","v":2800.75}]
[null,null,null,null,null,"SENCILLA","DOBLE","TRIPLE Ó CUADRUPLE","SENCILLA","DOBLE","TRIPLE Ó CUADRUPLE"]
[null,"RATE WITH BREAKFAST",110000,130000,117000,{"$f":"+_xlfn.CEILING.PRECISE((C10/F8),1)","v":45},{"$f":"+_xlfn.CEILING.PRECISE((D10/F8),1)","v":53},{"$f":"+_xlfn.CEILING.PRECISE((E10/F8),1)","v":47},{"$f":"+_xlfn.CEILING.PRECISE((C10/I8),1)","v":40},{"$f":"+_xlfn.CEILING.PRECISE((D10/I8),1)","v":47},{"$f":"+_xlfn.CEILING.PRECISE((E10/I8),1)","v":42}]
[null,"RATE WITH BREAKFAST AND DINNER",120000,150000,195000,{"$f":"+_xlfn.CEILING.PRECISE((C11/F8),1)","v":49},{"$f":"+_xlfn.CEILING.PRECISE((D11/F8),1)","v":61},{"$f":"+_xlfn.CEILING.PRECISE((E11/F8),1)","v":79},{"$f":"+_xlfn.CEILING.PRECISE((C11/I8),1)","v":43},{"$f":"+_xlfn.CEILING.PRECISE((D11/I8),1)","v":54},{"$f":"+_xlfn.CEILING.PRECISE((E11/I8),1)","v":70}]
[null,"RATE WITH BREAKFAST, LUNCH AND DINNER",130000,170000,225000,{"$f":"+_xlfn.CEILING.PRECISE((C12/F8),1)","v":53},{"$f":"+_xlfn.CEILING.PRECISE((D12/F8),1)","v":69},{"$f":"+_xlfn.CEILING.PRECISE((E12/F8),1)","v":91},{"$f":"+_xlfn.CEILING.PRECISE((C12/I8),1)","v":47},{"$f":"+_xlfn.CEILING.PRECISE((D12/I8),1)","v":61},{"$f":"+_xlfn.CEILING.PRECISE((E12/I8),1)","v":81}]
[]
[null,"ESPECIFICACIONES","SERVICIOS INCLUIDOS E LA TARIFA:\nIva del 16%; seguro hotelero, internet cableado y WI-FI, llamadas telefónicas locales ilimitadas, zona húmedas (turco y jacuzzi), emergencias médicas, parqueadero.\nLAS TARIFAS NO INCLUYEN OTROS SERVICIOS NO ESPECIFICADOS"]
[null,null,"El Hotel Cali Plaza ofrece:  • 15 habitaciones: 5 estándar y 8 superior, amplias y elegantes que invitan al descanso. • Lencería de lujo de 250 hilos. • Amenities para el cuidado personal. • Conexión WiFi de alta velocidad gratuita. • Aire acondicionado tipo Mini Split. • Televisión por cable con LCD de 42.” • Cajilla de seguridad electrónica. • Servicio de lavandería. • Llamadas telefónicas locales ilimitadas. • Circuito cerrado de televisión. • Parqueadero gratuito. •  Cafetería.\nLas habitaciones ofrecidas están sujetas a la disponibilidad que presente el hotel en el momento de solicitar la reserva.\nLas reservaciones podrán ser solicitadas por vía telefónica o email y deberán ser reconfirmadas por escrito informándonos el nombre y apellidos de cliente, fecha de llegada y salida, nombre completo persona con número de contacto de quien hace la reserva.\nFORMA DE PAGO: Las reservaciones pueden ser canceladas en efectivo (pesos Colombianos); tarjeta débito, crédito, visa, master card, american express.\nCon el fin de garantizar las habitaciones, deberán realizar un anticipo por el valor de la primera noche del total de las habitaciones reservadas, con dos (2) días de anterioridad y para cancelar o modificar el número de habitaciones deberán hacerse con (3) días previos a la llegada.\nToda reserva se conservara hasta las 12 de la noche del día de la llegada. Si el cliente no se presenta en la fecha prevista se considerara como No Shows y deberá pagar al hotel el valor total a la primera noche.\n"]

{"sheet":"HOTEL STANCIA","index":11,"n_rows":14,"n_cols":14,"rows_kept":14,"cut":false,"hidden":false,"merged":[[1,5,1,13],[3,5,3,13],[5,2,5,13],[6,2,6,5],[6,6,6,9],[6,10,6,13],[2,5,2,13],[11,2,11,13],[12,1,15,1],[12,2,12,13],[13,2,15,13],[7,4,8,4],[7,1,8,1],[7,2,8,2],[7,3,8,3],[7,5,8,5],[7,6,7,9],[7,10,7,13]]}
[]
[null,null,null,null,null,"HOTEL STANCIA SPIWACK"]
[null,null,null,null,null,"http://www.stancia.spiwak.com/"]
[null,null,null,null,null,"VOLVER AL INICIO"]
[]
[null,null,"ACOMODACIÓN"]
[null,null,"TARIFA EN PESOS",null,null,null,"RATE IN USD",null,null,null,"RATE IN EUROS"]
[null,"TARIFA POR PERSONA","ESTÁNDAR ONE BED ","ESTÁNDAR DOUBLE BED","SUPERIOR ","JUNIOR SUITE  ",{"$f":"DIVISAS!F96","v":2496.9899999999998},null,null,null,{"$f":"DIVISAS!H96","v":2800.75}]
[null,null,null,null,null,null,"ESTÁNDAR ONE BED","DOBLE","TRIPLE Ó CUADRUPLE","TRIPLE Ó CUADRUPLE","SENCILLA","DOBLE","DOBLE","TRIPLE Ó CUADRUPLE"]
[null,"1 PAX",134000,134000,148000,161000,{"$f":"+_xlfn.CEILING.PRECISE((C10/G8),1)","v":54},{"$f":"+_xlfn.CEILING.PRECISE((D10/G8),1)","v":54},{"$f":"+_xlfn.CEILING.PRECISE((E10/G8),1)","v":60},{"$f":"+_xlfn.CEILING.PRECISE((F10/G8),1)","v":65},{"$f":"+_xlfn.CEILING.PRECISE((C10/K8),1)","v":48},{"$f":"+_xlfn.CEILING.PRECISE((D10/K8),1)","v":48},{"$f":"+_xlfn.CEILING.PRECISE((E10/K8),1)","v":53},{"$f":"+_xlfn.CEILING.PRECISE((F10/K8),1)","v":58}]
[null,"ADITIONAL",25000,25000,25000,25000,{"$f":"+_xlfn.CEILING.PRECISE((C11/G8),1)","v":11},{"$f":"+_xlfn.CEILING.PRECISE((D11/G8),1)","v":11},{"$f":"+_xlfn.CEILING.PRECISE((E11/G8),1)","v":11},{"$f":"+_xlfn.CEILING.PRECISE((F11/G8),1)","v":11},{"$f":"+_xlfn.CEILING.PRECISE((C11/K8),1)","v":9},{"$f":"+_xlfn.CEILING.PRECISE((D11/K8),1)","v":9},{"$f":"+_xlfn.CEILING.PRECISE((E11/K8),1)","v":9},{"$f":"+_xlfn.CEILING.PRECISE((F11/K8),1)","v":9}]
[]
[null,"ESPECIFICACIONES","ESTAS TARIFAS NO INCLUYEN IVA NI SH  \n"]
[null,null,"• GARANTIA Y FORMA DE PAGO:\nEsta propuesta comercial no implica reserva. Ésta se debe hacer directamente a través de su ejecutivo comercial y con la firma del acuerdo de servicios donde se estipulan las condiciones de las partes.\n• NO SHOW\nEn caso de cancelación o modificación de la reserva se deberá realizar de acuerdo a lo que se estipule en las condiciones del contrato.\nINFORMACION IMPORTANTE PARA REALIZAR SU RESERVA EN EL HOTEL STANCIA SPIWAK:\n• Precios por habitación por noche, no incluye impuestos (16% sobre el valor de la habitación seleccionada), ni seguro hotelero $ 5.000 + IVA (16%) por persona por noche. \n• Tarifas sujetas a disponibilidad del hotel \n• Hora Check in: 3:00 p.m. \n• Hora Check out: 1:00 p.m \u2028Para nosotros usted es un aliado comercial muy importante por ello le garantizamos que somos la mejor opción en el Valle del Cauca para su empresa y le damos las gracias por preferirnos. \n\n\n"]

{"sheet":"HOTEL DANN CALI","index":12,"n_rows":13,"n_cols":8,"rows_kept":13,"cut":false,"hidden":false,"merged":[[1,4,1,7],[2,3,2,7],[3,1,3,7],[11,1,12,1],[11,2,11,7],[12,2,12,7],[7,1,8,1],[10,2,10,7],[6,4,6,5],[6,6,6,7],[6,2,6,3],[7,2,8,2],[7,3,8,3],[5,2,5,7]]}
[]
[null,null,null,null,"HOTEL DANN CALI"]
[null,null,null,"http://www.hotelesdanncali.com.co/home.html"]
[null,"VOLVER AL LISTADO"]
[]
[null,null,"ACOMODACIÓN"]
[null,null,"TARIFA EN PESOS",null,"RATE IN USD",null,"RATE IN EUROS"]
[null,"RATE PER PERSON","SENCILLA","DOBLE",{"$f":"DIVISAS!F96","v":2496.9899999999998},null,{"$f":"DIVISAS!H96","v":2800.75}]
[null,null,null,null,"SINGLE","DOUBLE","SINGLE","DOUBLE"]
[null,"TARIFA + IMPUESTOS",160000,80000,{"$f":"+_xlfn.CEILING.PRECISE((C10/E8),1)","v":65},{"$f":"+_xlfn.CEILING.PRECISE((C10/E8),1)","v":65},{"$f":"+_xlfn.CEILING.PRECISE((C10/G8),1)","v":58},{"$f":"+_xlfn.CEILING.PRECISE((C10/G8),1)","v":58}]
[]
[null,"ESPECIFICACIONES","IMPUESTOS CORRESPONDIENTES AL 16% DE IVA MAS $8.500 SEGURO HOTELERO DIARIO POR PERSONA\nServicios Incluidos en Tarifa:  Trago de bienvenida, periódico local diario;  parqueadero y  zona húmeda (piscina, jacuzzi, baño turco y gimnasio) del  Dann Carlton,  servicio médico de emergencia. \nAlimentos & Bebidas: Ofrecemos Almuerzos y Cenas Buffet a $35.000= cada una por persona más IVA."]
[null,null,"CONFIRMACION Y RESERVA:\nPara efectuar la reserva, agradecemos  se sirvan enviarnos una carta de compromiso indicando la cantidad de habitaciones requeridas con fecha de ingreso  y salida. \nPara garantizar las mismas es necesario  la cancelación  de un anticipo, el cual se pactaría al momento de la negociación.\n"]

{"sheet":"TORRE DE CALI PLAZA HOTEL","index":13,"n_rows":14,"n_cols":14,"rows_kept":14,"cut":false,"hidden":false,"merged":[[2,8,2,13],[3,3,3,13],[1,4,1,13],[5,2,5,13],[11,1,13,1],[10,2,10,13],[11,2,11,13],[13,2,13,13],[12,2,12,13],[7,6,7,9],[7,10,7,13],[6,2,6,5],[7,1,8,1],[7,2,8,2],[7,3,8,3],[7,4,8,4],[7,5,8,5],[6,6,6,9],[6,10,6,13]]}
[]
[null,null,null,null,"TORRE DE CALI PLAZA HOTEL"]
[null,null,null,null,null,null,null,null,"http://www.hoteltorredecali.com/"]
[null,null,null,"VOLVER AL INICIO"]
[]
[null,null,"ACOMODACIÓN"]
[null,null,"TARIFA EN PESOS",null,null,null,"RATE IN USD",null,null,null,"RATE IN EUROS"]
[null,"RATE PER PERSON","SENCILLA","DOBLE","TRIPLE","CUADRUPLE",{"$f":"DIVISAS!F96","v":2496.9899999999998},null,null,null,{"$f":"DIVISAS!H96","v":2800.75}]
[null,null,null,null,null,null,"SINGLE","DOUBLE","TRIPLE",4,"SINGLE","DOUBLE","TRIPLE",4]
[null,"TARIFA GRUPO",139900,163800,225980,288160,{"$f":"+_xlfn.CEILING.PRECISE((C10/G8),1)","v":57},{"$f":"+_xlfn.CEILING.PRECISE((D10/G8),1)","v":66},{"$f":"+_xlfn.CEILING.PRECISE((E10/G8),1)","v":91},{"$f":"+_xlfn.CEILING.PRECISE((F10/G8),1)","v":116},{"$f":"+_xlfn.CEILING.PRECISE((C10/G8),1)","v":57},{"$f":"+_xlfn.CEILING.PRECISE((D10/K8),1)","v":59},{"$f":"+_xlfn.CEILING.PRECISE((E10/K8),1)","v":81},{"$f":"+_xlfn.CEILING.PRECISE((F10/K8),1)","v":103}]
[]
[null,"ESPECIFICACIONES","AL VALOR DE ALOJAMIENTO SE LE AGREGA EL 16% DE I.V.A + $6.500 DIARIOS POR PERSONA DE SEGURO HOTELERO "]
[null,null,"Sus huéspedes disfrutarán de los siguientes beneficios, incluidos en la tarifa:\n• Desayuno Tipo Buffet  • Internet inalámbrico de cortesía en cualquier área del hotel  • Asistencia Médica EMERMEDICA, disponible 24 horas en casos de emergencia. \n• Cajilla de Seguridad digital en la habitación.  • Busisness Center • Gimnasio con máquinas para ejercicios cardiovasculares  • Estación de Café en el lobby \n• Clases de salsa para los huéspedes todos los jueves de 7:00 a 8:00 p.m. a cargo de la reconocida Academia Swing  Latino.  • Parqueadero de Cortesía. \n• Ingreso al Mirador Panorámico piso 43 SERVICIOS ADICIONALES • Las llamadas locales tienen un costo de $160 por minuto.  • Ingreso a discoteca “La Maldita Primavera” $15.000 por persona por noche  • Almuerzo y cena tipo menú por $20.000 cada uno incluido el consumo."]
[null,null,"NOTA: El servicio de alimentación se prestara en salón para mayor comodidad. \nRESERVA Y GARANTIA DE HABITACIONES: Cada participante deberá garantizar sus reservas con tarjeta de crédito, consignación o transferencia bancaria. \u2028\nFORMA DE PAGO: En el momento del registro en el Hotel, se deberá hacer el pago de la totalidad de las noches de alojamiento reservadas. \u2028\nMODIFICACIONES Y CANCELACIONES DE RESERVAS – PAGO DE NO-SHOWS. \n• Sus reservas serán efectivas, una vez nosotros hayamos recibido carta de confirmación y garantía. \n• Aceptamos cambios hasta de un 10% del número de habitaciones reservadas. En caso de cancelación de la reserva debe hacerse por escrito: \u20281. No hay penalidad, 48 horas antes de la llegada de la reserva. \n• En caso que algún huésped no llegue en la fecha establecida y no se haya cancelado su reserva con 48 horas de antelación, se facturará el valor de la primera noche de alojamiento. "]

{"sheet":"MS CIUDAD JARDÍN","index":14,"n_rows":15,"n_cols":11,"rows_kept":15,"cut":false,"hidden":false,"merged":[[11,2,11,10],[12,1,14,1],[12,2,12,10],[13,2,13,5],[13,6,13,10],[14,2,14,10],[7,1,8,1],[7,2,8,2],[7,3,8,3],[7,4,8,4],[7,5,7,7],[7,8,7,10],[1,4,1,10],[3,4,3,10],[5,2,5,10],[6,2,6,4],[6,5,6,7],[6,8,6,10],[2,4,2,10]]}
[]
[null,null,null,null,"HOTEL MS CIUDAD JARDÍN"]
[null,null,null,null,"http://www.hotelesms.com/es/hoteles/cali/hotel-ms-ciudad-jardin-sur"]
[null,null,null,null,"VOLVER AL LISTADO"]
[]
[null,null,"ACOMODACIÓN"]
[null,null,"TARIFA EN PESOS",null,null,"RATE IN USD",null,null,"RATE IN EUROS"]
[null,"RATE PER PERSON","SENCILLA","DOBLE","TRIPLE Ó CUADRUPLE",{"$f":"DIVISAS!F96","v":2496.9899999999998},null,null,{"$f":"DIVISAS!H96","v":2800.75}]
[null,null,null,null,null,"SINGLE","DOUBLE","3/4","SINGLE","DOUBLE","3/4"]
[null,"TARIFA CON DESAYUNO ",182300,223938,318345,{"$f":"+_xlfn.CEILING.PRECISE((C10/F8),1)","v":74},{"$f":"+_xlfn.CEILING.PRECISE((D10/F8),1)","v":90},{"$f":"+_xlfn.CEILING.PRECISE((E10/F8),1)","v":128},{"$f":"+_xlfn.CEILING.PRECISE((C10/I8),1)","v":66},{"$f":"+_xlfn.CEILING.PRECISE((D10/I8),1)","v":80},{"$f":"+_xlfn.CEILING.PRECISE((E10/I8),1)","v":114}]
[null,"TARIFA CON TODA LA ALIMENTACIÓN",201285,324000,468345,{"$f":"+_xlfn.CEILING.PRECISE((C11/F8),1)","v":81},{"$f":"+_xlfn.CEILING.PRECISE((E10/F8),1)","v":128},{"$f":"+_xlfn.CEILING.PRECISE((E11/F8),1)","v":188},{"$f":"+_xlfn.CEILING.PRECISE((C11/I8),1)","v":72},{"$f":"+_xlfn.CEILING.PRECISE((D11/I8),1)","v":116},{"$f":"+_xlfn.CEILING.PRECISE((E11/I8),1)","v":168}]
[]
[null,"ESPECIFICACIONES","HABITACIONES DISPONIBLES PARA EL EVENTO: 10 habitaciones dobles y 8 habitaciones triples."]
[null,null,"Servicios Incluidos en Tarifa:\n•  Alojamiento en cómodas habitaciones.\n•  Iva del 16% de alojamiento.\n• Seguro hotelero por persona de $7.900.\n• Desayuno americano y alimentación dependiendo tarifa.\n• Conexión a Internet Wifi, banda ancha y parqueadero.",null,null,null,"Servicios NO incluidos en la tarifa:\n• Mini- bar\n• Llamadas telefónicas nacionales e internacionales.\n• Lavandería\n• Servicios no especificados en la tarifa."]
[null,null,"FORMA DE PAGO:  Para la confirmación de la reserva,  se requiere  el 50%  con veinte  días  de  anticipación  a la reserva  y el otro  50%  tres días antes de la llegada  del grupo.\nDAVIVIENDA: Cuernta corriente N°. 015969999745 - HOTELES MS SAS.\nBANCOLOMBIA: Cuernta corriente N°.  82954707400 - HOTELES MS SAS.\nFavor consultar disponibilidad antes de realizar la consignación."]

{"sheet":"FOUR POINTS BY SHERATON","index":15,"n_rows":37,"n_cols":8,"rows_kept":37,"cut":false,"hidden":false,"merged":[[24,1,25,1],[17,4,17,7],[19,4,19,7],[22,2,22,7],[23,2,23,7],[24,4,24,5],[24,6,24,7],[21,2,21,7],[30,2,30,7],[31,2,31,7],[32,2,32,7],[33,1,34,1],[33,4,33,5],[33,6,33,7],[5,2,5,7],[1,4,1,7],[18,2,18,7],[12,1,15,1],[7,4,7,5],[7,6,7,7],[6,2,6,7],[11,2,11,7],[7,1,8,1],[12,2,15,7],[2,2,2,7],[3,1,3,7]]}
[]
[null,null,null,null,"FOUR POINTS BY SHERATON"]
[null,null,"http://www.starwoodhotels.com/fourpoints/index.html"]
[null,"VOLVER AL LISTADO"]
[]
[null,null,"ACOMODACIÓN"]
[null,null,"TARIFA EN PESOS"]
[null,"RATE PER PERSON","ESTANDAR\n(1 cama doble)","SUPERIOR\n(2 camas dobles)","JUNIOR SUITE\n(1 cama king size)",null,"SUITE\n(1 cama king size)"]
[null,null,"SENCILLA","DOBLE","SENCILLA","DOBLE","SENCILLA","DOBLE"]
[null,"TARIFA EN SEMANA\n(De lunes a jueves)",235000,265000,315000,345000,395000,425000]
[null,"TARIFA EN FIN DE SEMANA\n(Viernes, sábado, domingo y lunes festivos)",180000,180000,230000,230000,280000,280000]
[]
[null,"ESPECIFICACIONES","Nuestros servicios son los siguientes: • 181 Habitaciones •  6 Salones que se convierte en 11 espacios para eventos con capacidades hasta de 300 personas. • 5 salas VIP. • SPA KYOTO ORIENTAL, zona húmeda: Sauna, turco, Jacuzzi, Gym  Cardio. • Piscina. • Business Center.\u2028 • 2 Restaurantes. Restaurante Cook ́s y Mango ́s. • Bar: Bar & Tono. • Personal especializado en todas las áreas. • Parqueadero.\nDescripción de los servicios incluidos: Al salir del aeropuerto ubique a nuestro conductor que le estará esperando con un aviso Con Nombre y Logo del Hotel Four Points By Sheraton Cali • Desayuno Buffet de Cortesía \n• Emergencias médicas - EMERMÉDICAS  • Llamadas Locales • Cortesía Parqueadero • Estación de Café en el Lobby \n• Cortesía Internet por banda ancha. • Cortesía Sala VIP por 2 horas sujeto a disponibilidad • Room Service 24 Horas.\n• Cortesía Periódico disponible. • Tarjeta SPG Starwood Prefered Guest de Fidelización • Bebida de bienvenida de Cortesía\n• Business Center y Hemeroteca, Ubicada en el piso 8  • Gimnasio, Turco, Jacuzzi • Piscina con vista panorámica piso 12.\nVIGENCIA DE LAS TARIFAS, HASTA 31 DE DICIEMBRE DE 2015.TARIFA NO INCLUYE IVA (16%) NI SEGURO HOTELERO DE $6.500 POR PERSONA POR NOCHE - ALMUERZO O CENA POR VALOR DE $38.000 CON IVA INCLUIDO \n\nCONTINUA EN LA SIGUIENTE PÁGINA\n"]
[]
[]
[]
[]
[null,null,null,null,"FOUR POINTS BY SHERATON"]
[null,null,"http://www.starwoodhotels.com/fourpoints/index.html"]
[null,null,null,null,"VOLVER AL INICIO"]
[]
[null,null,"ACOMODACIÓN"]
[null,null,"TARIFA EN DOLARES"]
[null,null,{"$f":"DIVISAS!F96","v":2496.9899999999998}]
[null,"TARIFA POR PERSONA","ESTANDAR\n(1 cama doble)","SUPERIOR\n(2 camas dobles)","JUNIOR SUITE\n(1 cama king size)",null,"SUITE\n(1 cama king size)"]
[null,null,"SENCILLA","DOBLE","SENCILLA","DOBLE","SENCILLA","DOBLE"]
[null,"TARIFA EN SEMANA\n(De lunes a jueves)",{"$f":"+_xlfn.CEILING.PRECISE((C10/C24),1)","v":95},{"$f":"+_xlfn.CEILING.PRECISE((D10/C24),1)","v":107},{"$f":"+_xlfn.CEILING.PRECISE((D10/C24),1)","v":107},{"$f":"+_xlfn.CEILING.PRECISE((F10/C24),1)","v":139},{"$f":"+_xlfn.CEILING.PRECISE((G10/C24),1)","v":159},{"$f":"+_xlfn.CEILING.PRECISE((H10/C24),1)","v":171}]
[null,"TARIFA EN FIN DE SEMANA\n(Viernes, sábado, domingo y lunes festivos)",{"$f":"+_xlfn.CEILING.PRECISE((C11/C24),1)","v":73},{"$f":"+_xlfn.CEILING.PRECISE((D11/C24),1)","v":73},{"$f":"+_xlfn.CEILING.PRECISE((E11/C24),1)","v":93},{"$f":"+_xlfn.CEILING.PRECISE((F11/C24),1)","v":93},{"$f":"+_xlfn.CEILING.PRECISE((G11/C24),1)","v":113},{"$f":"+_xlfn.CEILING.PRECISE((H11/C24),1)","v":113}]
[]
[]
[null,null,"ACOMODACIÓN"]
[null,null,"TARIFA EN EUROS"]
[null,null,{"$f":"DIVISAS!H96","v":2800.75}]
[null,"TARIFA POR PERSONA","ESTANDAR\n(1 cama doble)","SUPERIOR\n(2 camas dobles)","JUNIOR SUITE\n(1 cama king size)",null,"SUITE\n(1 cama king size)"]
[null,null,"SENCILLA","DOBLE","SENCILLA","DOBLE","SENCILLA","DOBLE"]
[null,"TARIFA EN SEMANA\n(De lunes a jueves)",{"$f":"+_xlfn.CEILING.PRECISE((C10/C33),1)","v":84},{"$f":"+_xlfn.CEILING.PRECISE((D10/C33),1)","v":95},{"$f":"+_xlfn.CEILING.PRECISE((E10/C33),1)","v":113},{"$f":"+_xlfn.CEILING.PRECISE((F10/C33),1)","v":124},{"$f":"+_xlfn.CEILING.PRECISE((G10/C33),1)","v":142},{"$f":"+_xlfn.CEILING.PRECISE((H10/C33),1)","v":152}]
[null,"TARIFA EN FIN DE SEMANA\n(Viernes, sábado, domingo y lunes festivos)",{"$f":"+_xlfn.CEILING.PRECISE((C11/C33),1)","v":65},{"$f":"+_xlfn.CEILING.PRECISE((D11/C33),1)","v":65},{"$f":"+_xlfn.CEILING.PRECISE((E11/C33),1)","v":83},{"$f":"+_xlfn.CEILING.PRECISE((F11/C33),1)","v":83},{"$f":"+_xlfn.CEILING.PRECISE((G11/C33),1)","v":100},{"$f":"+_xlfn.CEILING.PRECISE((H11/C33),1)","v":100}]

{"sheet":"HOTEL MOVICH ","index":16,"n_rows":14,"n_cols":8,"rows_kept":14,"cut":false,"hidden":false,"merged":[[1,4,1,5],[1,6,1,7],[3,4,3,5],[3,6,3,7],[2,3,2,7],[13,2,14,7],[13,1,14,1],[7,1,8,1],[7,2,8,2],[7,3,8,3],[7,4,7,5],[7,6,7,7],[5,2,5,7],[6,2,6,3],[6,4,6,5],[6,6,6,7],[12,2,12,7]]}
[]
[null,null,null,null,null,null,"HOTEL MOVICH"]
[null,null,null,"https://movichhotels.com/"]
[null,null,null,null,null,null,"VOLVER AL LISTADO"]
[]
[null,null,"ACOMODACIÓN"]
[null,null,"TARIFA EN PESOS",null,"RATE IN USD",null,"RATE IN EUROS"]
[null,"TARIFA POR PERSONA","SENCILLA","DOBLE",{"$f":"DIVISAS!F96","v":2496.9899999999998},null,{"$f":"DIVISAS!H96","v":2800.75}]
[null,null,null,null,"SINGLE","DOUBLE","SINGLE","DOUBLE"]
[null,"OPCIÓN 1",292440,377240,{"$f":"+_xlfn.CEILING.PRECISE((C10/E8),1)","v":118},{"$f":"+_xlfn.CEILING.PRECISE((D10/E8),1)","v":152},{"$f":"+_xlfn.CEILING.PRECISE((D10/G8),1)","v":135},{"$f":"+_xlfn.CEILING.PRECISE((D10/G8),1)","v":135}]
[null,"OPCIÓN 2",267440,302240,{"$f":"+_xlfn.CEILING.PRECISE((C11/E8),1)","v":108},{"$f":"+_xlfn.CEILING.PRECISE((D11/E8),1)","v":122},{"$f":"+_xlfn.CEILING.PRECISE((D11/G8),1)","v":108},{"$f":"+_xlfn.CEILING.PRECISE((D11/G8),1)","v":108}]
[null,"    OPCIÓN 3",209000,239999,{"$f":"+_xlfn.CEILING.PRECISE((C12/E8),1)","v":84},{"$f":"+_xlfn.CEILING.PRECISE((D12/E8),1)","v":97},{"$f":"+_xlfn.CEILING.PRECISE((D12/G8),1)","v":86},{"$f":"+_xlfn.CEILING.PRECISE((D12/G8),1)","v":86}]
[]
[null,"ESPECIFICACIONES","ESTAS TARIFAS NO INCLUYEN IVA NI SH\nOPCION1 - INCLUYE  • Alojamiento con impuestos • Desayuno, almuerzo y cena • Servicio personalizado • Acceso a Zonas húmedas (Turco) y gimnasio • Habitaciones con tina e hidromasaje • Wi fi ilimitado en todas las habitaciones y áreas del hotel • Habitaciones muy confortables, camas de ancho 1.40 en habitaciones dobles y de 1.60 en habitaciones sencillas. \nOPCION 2  - INCLUYE • Alojamiento con impuestos • Desayuno y una comida • Servicio personalizado • Acceso a Zonas húmedas (Turco) y gimnasio \n• Habitaciones con tina e hidromasaje • Wi fi ilimitado en todas las habitaciones y áreas del hotel \n• Habitaciones muy confortables, camas de ancho 1.40 en habitaciones \u2028dobles y de 1.60 en habitaciones sencillas. \nOPCION 3 - INCLUYE • Alojamiento • Desayuno • Servicio personalizado • Acceso a Zonas húmedas (Turco) y gimnasio • Habitaciones con tina e hidromasaje• Wi fi ilimitado en todas las habitaciones y áreas del hotel  • Habitaciones muy confortables, camas de ancho 1.40 en habitaciones \u2028dobles y de 1.60 en habitaciones sencillas.\n1. Esta oferta comercial no implica reserva. Ésta se debe hacer directamente a través de su ejecutivo comercial con la firma del contrato y el pago del 50% al confirmar el evento, el restante 50% al Check out. Las consignaciones deberán realizarse a la siguiente cuenta:\nEntidad: Tipo Cuenta: Nro. Cuenta Beneficiario: NIT: Helm Bank\u2028Corriente\u2028012-41225-0\u2028Global Operadora Hotelera S.A.S 900.521.807-7\nLa consignación se debe hacer exclusivamente en Formato Único de Recaudo diligenciando los campos así:\nCliente: RECAUDO GLOBAL OPERADORA HOTELERA S.A.S Código de Convenio 8312 GOH SAS Hotel Casa Alférez\u2028NIT del cliente que consigna\u2028Teléfono de contacto del cliente\nEl Horario de Check in es a las 3pm y Check out a la 1pm \nLas reservas de habitaciones que se tengan reservadas y que No sean canceladas mínimo con 2 días de anterioridad, serán cobradas como NO SHOW.\n\n"]

{"sheet":"HOTEL DANN CARLTON CALI","index":17,"n_rows":13,"n_cols":8,"rows_kept":13,"cut":false,"hidden":false,"merged":[[10,2,10,7],[11,1,12,1],[11,2,11,7],[12,2,12,7],[7,1,8,1],[7,2,8,2],[7,3,8,3],[7,4,7,5],[7,6,7,7],[1,4,1,7],[5,2,5,7],[6,2,6,3],[6,4,6,5],[6,6,6,7],[2,3,2,7],[3,1,3,7]]}
[]
[null,null,null,null,"HOTEL DANN CARLTON CALI"]
[null,null,null,"http://www.hotelesdanncali.com.co/home.html"]
[null,"VOLVER AL LISTADO"]
[]
[null,null,"ACOMODACIÓN"]
[null,null,"TARIFA EN PESOS",null,"RATE IN USD",null,"RATE IN EUROS"]
[null,"TARIFA POR PERSONA","SENCILLA","DOBLE",{"$f":"DIVISAS!F96","v":2496.9899999999998},null,{"$f":"DIVISAS!H96","v":2800.75}]
[null,null,null,null,"SENCILLA","DOBLE","SENCILLA","DOBLE"]
[null,"TARIFA + IMPUESTOS",130000,260000,{"$f":"+_xlfn.CEILING.PRECISE((C10/E8),1)","v":53},{"$f":"+_xlfn.CEILING.PRECISE((D10/E8),1)","v":105},{"$f":"+_xlfn.CEILING.PRECISE((C10/G8),1)","v":47},{"$f":"+_xlfn.CEILING.PRECISE((D10/G8),1)","v":93}]
[]
[null,"ESPECIFICACIONES","IMPUESTOS CORRESPONDIENTES AL 16% DE IVA MAS $8.500 SEGURO HOTELERO DIARIO POR PERSONA\nServicios Incluidos en Tarifa:  Trago de bienvenida, periódico local diario;  parqueadero y  zona húmeda (piscina, jacuzzi, baño turco y gimnasio) del  Dann Carlton,  servicio médico de emergencia. \nAlimentos & Bebidas: Ofrecemos Almuerzos y Cenas Buffet a $35.000= cada una por persona más IVA."]
[null,null,"CONFIRMACION Y RESERVA:\nPara efectuar la reserva, agradecemos  se sirvan enviarnos una carta de compromiso indicando la cantidad de habitaciones requeridas con fecha de ingreso  y salida. \nPara garantizar las mismas es necesario  la cancelación  de un anticipo, el cual se pactaría al momento de la negociación.\n"]

{"sheet":"HOTEL SPIWAK","index":18,"n_rows":25,"n_cols":8,"rows_kept":25,"cut":false,"hidden":false,"merged":[[1,4,1,7],[2,4,2,7],[3,4,3,7],[5,2,5,7],[6,2,6,3],[6,4,6,5],[6,6,6,7],[24,2,28,7],[24,1,28,1],[7,6,7,7],[19,2,19,7],[20,2,20,7],[7,1,8,1],[7,2,8,2],[7,3,8,3],[7,4,7,5]]}
[]
[null,null,null,null,"HOTEL STANCIA SPIWACK"]
[null,null,null,null,"http://www.spiwak.com/"]
[null,null,null,null,"VOLVER AL INICIO"]
[]
[null,null,"ACOMODACIÓN"]
[null,null,"TARIFA EN PESOS",null,"RATE IN USD",null,"RATE IN EUROS"]
[null,"TARIFA POR PERSONA","1 PAX -2 PAX","ADICIONAL",{"$f":"DIVISAS!F96","v":2496.9899999999998},null,{"$f":"DIVISAS!H96","v":2800.75}]
[null,null,null,null,"SINGLE","DOUBLE","SINGLE","DOUBLE"]
[null,"LUXURY JUNIOR KING SUITES ",215000,38500,{"$f":"+_xlfn.CEILING.PRECISE((C10/E8),1)","v":87},{"$f":"+_xlfn.CEILING.PRECISE((D10/E8),1)","v":16},{"$f":"+_xlfn.CEILING.PRECISE((C10/G8),1)","v":77},{"$f":"+_xlfn.CEILING.PRECISE((D10/G8),1)","v":14}]
[null,"LUXURY TWIN SUITES",215000,38500,{"$f":"+_xlfn.CEILING.PRECISE((C11/E8),1)","v":87},{"$f":"+_xlfn.CEILING.PRECISE((D11/E8),1)","v":16},{"$f":"+_xlfn.CEILING.PRECISE((C11/G8),1)","v":77},{"$f":"+_xlfn.CEILING.PRECISE((D11/G8),1)","v":14}]
[null,"MASTER SUITES",232000,38500,{"$f":"+_xlfn.CEILING.PRECISE((C12/E8),1)","v":93},{"$f":"+_xlfn.CEILING.PRECISE((D12/E8),1)","v":16},{"$f":"+_xlfn.CEILING.PRECISE((C12/G8),1)","v":83},{"$f":"+_xlfn.CEILING.PRECISE((D12/G8),1)","v":14}]
[null,"LUXURY KING /  TWIN SUITE JACUZZI",249000,38500,{"$f":"+_xlfn.CEILING.PRECISE((C13/E8),1)","v":100},{"$f":"+_xlfn.CEILING.PRECISE((D13/E8),1)","v":16},{"$f":"+_xlfn.CEILING.PRECISE((C13/G8),1)","v":89},{"$f":"+_xlfn.CEILING.PRECISE((D13/G8),1)","v":14}]
[null,"LUXURY KING /  TWIN SUITE BALCON",279500,38500,{"$f":"+_xlfn.CEILING.PRECISE((C14/E8),1)","v":112},{"$f":"+_xlfn.CEILING.PRECISE((D14/E8),1)","v":16},{"$f":"+_xlfn.CEILING.PRECISE((C14/G8),1)","v":100},{"$f":"+_xlfn.CEILING.PRECISE((D14/G8),1)","v":14}]
[null,"SUPER MASTER SUITES ",322500,38500,{"$f":"+_xlfn.CEILING.PRECISE((C15/E8),1)","v":130},{"$f":"+_xlfn.CEILING.PRECISE((D15/E8),1)","v":16},{"$f":"+_xlfn.CEILING.PRECISE((C15/G8),1)","v":116},{"$f":"+_xlfn.CEILING.PRECISE((D15/G8),1)","v":14}]
[null,"LUXURY PLUSS SUITE ",365500,38500,{"$f":"+_xlfn.CEILING.PRECISE((C16/E8),1)","v":147},{"$f":"+_xlfn.CEILING.PRECISE((D16/E8),1)","v":16},{"$f":"+_xlfn.CEILING.PRECISE((C16/G8),1)","v":131},{"$f":"+_xlfn.CEILING.PRECISE((D16/G8),1)","v":14}]
[null,"SUPER MASTER SUITES BALCON ",408500,38500,{"$f":"+_xlfn.CEILING.PRECISE((C17/E8),1)","v":164},{"$f":"+_xlfn.CEILING.PRECISE((D17/E8),1)","v":16},{"$f":"+_xlfn.CEILING.PRECISE((C17/G8),1)","v":146},{"$f":"+_xlfn.CEILING.PRECISE((D17/G8),1)","v":14}]
[null,"SUPER MASTER SUITES VIP",645000,38500,{"$f":"+_xlfn.CEILING.PRECISE((C18/E8),1)","v":259},{"$f":"+_xlfn.CEILING.PRECISE((D18/E8),1)","v":16},{"$f":"+_xlfn.CEILING.PRECISE((C18/G8),1)","v":231},{"$f":"+_xlfn.CEILING.PRECISE((D18/G8),1)","v":14}]
[null,"PRESIDENCIAL ",860000,38500,{"$f":"+_xlfn.CEILING.PRECISE((C19/E8),1)","v":345},{"$f":"+_xlfn.CEILING.PRECISE((D19/E8),1)","v":16},{"$f":"+_xlfn.CEILING.PRECISE((C19/G8),1)","v":308},{"$f":"+_xlfn.CEILING.PRECISE((D19/G8),1)","v":14}]
[]
[null,"ESPECIFICACIONES","ESTAS TARIFAS NO INCLUYEN IVA NI SH  \n\nCONTINUA EN LA SIGUIENTE PÁGINA\n"]
[]
[]
[]
[null,"ESPECIFICACIONES","INFORMACION IMPORTANTE PARA REALIZAR SU RESERVA:\n  Precios por habitación por noche, no incluye impuestos (16% sobre el valor de la habitación seleccionada), ni seguro hotelero $ 8.900 + IVA (16%) por persona por noche. \n  Tarifas sujetas a disponibilidad del hotel \n  Niños Menores de 12 años de cortesía compartiendo habitación \u2028con los padres, solo pagan seguro hotelero. \n Hora Check in: 3:00 p.m. \n Hora Check out: 1:00 p.m. \nCortesía del Hotel\n El hotel ofrece como cortesía (complementary) (1) una habitación Luxury King Suite en acomodación doble por cada 25 habitaciones reconfirmadas y garantizadas por el grupo.\n\nGARANTIA Y FORMA DE PAGO:\nEsta propuesta comercial no implica reserva. Ésta se debe hacer directamente a través de su ejecutivo comercial y con la firma del acuerdo de servicios donde se estipulan las condiciones de las partes.\nNO SHOW\nEn caso de cancelación o modificación de la reserva se deberá realizar de acuerdo a lo que se estipule en las condiciones del contrato.\n\n"]